Workbook

Sheet CATÁLOGO E-7 (hidden)
H3: LICITACIÓN:
G4: SECRETARÍA DE COMUNICACIONES Y TRANSPORTES | I4: “CONSTRUCCIÓN DE OBRAS DE DRENAJE EN EL CAMINO: LOS PLANES-SAN ANTONIO, EN KM 18+100.00, EN EL MUNICIPIO DE LA PAZ, ESTADO DE BAJA CALIFORNIA SUR”.
G5: DIRECCIÓN GENERAL ADJUNTA DE CAMINOS RURALES | H5: OBRA:
G6: CENTRO SCT EN BAJA CALIFORNIA SUR
G8: RESIDENCIA GENERAL DE CARRETERAS ALIMENTADORAS | H8: MUNICIPIO: | I8: LA PAZ
C11: No. | D11: NORMA O | E11: DESCRIPCIÓN | G11: UNIDAD | H11: VOLUMEN E7 | I11: PRECIO UNITARIO | K11: IMPORTE $ E7
D12: REFERENCIA | I12: CON LETRA | J12: CON NÚMERO
K13: =K22+K37+K44+K53 -> 
E14: TERRACERÍAS, PUOT
C15: 1 | D15: N-CTR-CAR-1-02-013 | E15: Retiro de tubería temporal existente de polietileno de alta densidad, por unidad de obra terminada. | G15: m | H15: 15 | J15: 388.73 | K15: =ROUND(H15*J15,2) -> 5830.95
C16: =+C15+1 -> 2 | E16: Despalmes de cortes y desplante de terraplenes, desperdiciando el material que será utilizado para arrope de terraplenes, por unidad de obra terminada. | G16: m3 | H16: 933.97 | J16: 30 | K16: 28019.1
C17: 3 | D17: N·CSV·CAR·4·02·001/03 | E17: Recuperación en frío de pavimentos asfálticos, en un espesor de 20 cm, el material recuperado será utilizado en la formación de terraplenes, por unidad de obra terminada. | G17: m3 | H17: =220*0.2*7 -> 308 | J17: 160 | K17: 49280
C18: 4 | D18: N-CTR-CAR-1-01-003 | E18: Excavación de cortes cualquiera que sea su clasificación, el material producto del corte se utiliza en la construcción de terraplenes, por unidad de obra terminada. | G18: m3 | H18: 1062.51 | J18: 60 | K18: 63750.6
C19: 5 | D19: N-CTR-CAR-1-01-009 | E19: Construcción de terraplenes utilizando materiales compactables procedentes de cortes, en el cuerpo del terraplén compactado al 90 % conforme lo indicado en el proyecto, por unidad de obra terminada. | G19: m3 | H19: 4740.1 | J19: 140 | K19: 663614
C20: =+C19+1 -> 6 | D20: N-CTR-CAR-1-01-009 | E20: Construcción de subrasante utilizando materiales compactables procedentes de banco, en el cuerpo de la subrasante compactado al 100 % conforme lo indicado en el proyecto, por unidad de obra terminada. | G20: m3 | H20: 704.23 | J20: 190 | K20: 133803.7
C21: 7 | D21: N-CTR-CAR-1-01-009 | E21: Excavación de canal de sección trapezoidal con una profundidad menor de 2 m, el material se utiliza para la construcción de terraplenes, por unidad de obra terminada. | G21: m3 | H21: =H19-H18 -> 3677.59 | J21: 80 | K21: 294207.2
J22: SUBTOTAL= | K22: =SUM(K15:K21) -> 1238505.55
E23: OBRAS DE DRENAJE, PUOT
C24: =+C21+1 -> 8 | D24: N-CTR-CAR-1-01-007 | E24: Excavación para estructuras u obras de drenaje en material B, el material producto de la excavación se utiliza en la construcción de terraplenes, por unidad de obra terminada. | G24: m3 | H24: =#REF!*2.75*3 ->  | J24: 70 | K24: =ROUND(H24*J24,2) -> 
C25: =+C24+1 -> 9 | D25: N-CTR-CAR-1-01-011 | E25: Relleno, con material producto de corte para obras de drenaje, por unidad de obra terminada. | G25: m3 | H25: =H24-#REF! ->  | J25: 125
C26: =+C25+1 -> 10 | D26: N-CTR-CAR-1-02-003 | E26: Concreto hidráulico normal de f´c= 100 kg/cm², en plantilla para obras de drenaje, por unidad de obra terminada. | G26: m3 | H26: =#REF!*#REF!*0.05+10.75*6.9*0.05*3 ->  | J26: 2800
C27: 11 | D27: N-CTR-CAR-1-02-003 | E27: Concreto hidráulico normal de f´c= 150 kg/cm² en zampeado, por unidad de obra terminada. | G27: m3 | H27: =+#REF! ->  | J27: 3200
C28: 12 | D28: N-CTR-CAR-1-02-003 | E28: Concreto hidráulico normal de f´c= 250 kg/cm² en construcción de muros de contención y cajones, por unidad de obra terminada. | G28: m3 | H28: =+#REF!-#REF! ->  | J28: 5500
C29: 13 | D29: N-CTR-CAR-1-02-003 | E29: Concreto hidráulico normal de f´c= 250 kg/cm² en construcción de zampeado en tanque de amortiguamiento, por unidad de obra terminada. | G29: m3 | H29: =+#REF! ->  | J29: 5500 | K29: =ROUND(H29*J29,2) -> 
C30: 14 | D30: N-CTR-CAR-1-02-004 | E30: Acero para concreto hidráulico con limite elástico igual o mayor de fy= 4200 kg/cm², se deberá utilizar un recubrimiento anticorrosivo a base de resinas epóxicas modificadas y cemento (marca SikaTop®Armatec 110 EpoCem ó similar) por unidad de obra terminada. | G30: kg | H30: =+#REF! ->  | J30: 55
C31: 15 | D31: N-CTR-CAR-1-02-004 | E31: Malla Electrosoldada 6-6/4-4 en la construcción del zampeado, por unidad de obra terminada. | G31: m2 | H31: =ROUND(H27/0.15,2)+#REF!+100 ->  | J31: 60
C32: 16 | D32: N-CTR-PUE-1-02-004 | E32: Fabricación y colocación de gavión de alambre, a base de mampostería de piedra con una longitud de 2.00x1.00m de ancho x1.00m de alto.(Incluye alambre para amarres) por unidad de obra terminada | G32: m3 | H32: =+#REF! ->  | J32: 1600 | K32: =ROUND(H32*J32,2) -> 
C33: 17 | D33: N·CTR·CAR·1·03·003/00 | E33: Contracunetas de concreto hidráulico f'c=200 kg/cm2 con tamaño máximo de agregado 19mm (3/4"), por unidad de obra terminada. | G33: m3 | H33: =+#REF! ->  | J33: 4400
C34: 18 | D34: N·CTR·CAR·1·03·006/00 | E34: Lavadero de concreto hidráulico reforzado de f´c = 150 kg/cm², por unidad de obra terminada. | G34: m3 | H34: =+#REF! ->  | J34: 4200
C35: 19 | D35: N·CTR·CAR·1·03·007/00 | E35: Bordillo de concreto hidráulico de f´c = 150 kg/cm² de 16 x 8 x 12 cm, con tamaño máximo de agregado de 1.27 cm (1/2"), por unidad de obra terminada. | G35: m3 | H35: =+#REF! ->  | J35: 4500
C36: 20 | D36: N·CTR·CAR·1·03·011/00 | E36: Formación de capas drenantes con material pétreo, compactado al 90 %, conforme lo indicado en el proyecto, por unidad de obra terminada. | G36: m3 | H36: =20*100*0.6 -> 1200 | J36: 400 | K36: 480000
J37: SUBTOTAL= | K37: =SUM(K24:K36) -> 
E38: PAVIMENTOS, PUOT
C39: =+C36+1 -> 21 | D39: N-CTR-CAR-1-04-002 | E39: Base hidráulica, con materiales pétreos procedentes de bancos que elija el contratista incluyendo acarreos, compactada al 100 % conforme lo indicado en el proyecto, por unidad de obra terminada. | G39: lt | H39: =220*0.2*8 -> 352 | J39: 450 | K39: =ROUND(H39*J39,2) -> 158400
C40: =+C39+1 -> 22 | D40: N-CTR-CAR-1-04-004 | E40: Riego de impregnación con emulsiones asfálticas de rompimiento lento, por unidad de obra terminada. | G40: lt | H40: =(H39/0.2)*1.5 -> 2640 | J40: 18.31 | K40: 48338.4
C41: =+C40+1 -> 23 | D41: N-CTR-CAR-1-04-005 | E41: Aplicación de riego asfaltico de liga, con emulsión de rompimiento rápido, por unidad de obra terminada. | G41: lt | H41: =(H42/0.07)*0.6 -> 660 | J41: 18.39 | K41: 12137.4
C42: 24 | D42: N-CTR-CAR-1-04-006 | E42: Carpeta asfáltica con mezcla en caliente de granulometría densa con materiales procedentes de bancos que elija el Contratista, por unidad de obra terminada. | G42: m3 | H42: =220*7*0.05 -> 77 | J42: 2095.93 | K42: 161386.61
C43: 25 | D43: N-CMT-4-05-004 | E43: Cementos asfálticos PG 76-22 , modificado empleados en carpeta asfáltica, por unidad de obra terminada | G43: kg | H43: =H42*128 -> 9856 | J43: 21.53 | K43: 212199.68
J44: SUBTOTAL= | K44: =SUM(K39:K43) -> 592462.09
E45: SEÑALAMIENTO, PUOT
C46: =+C43+1 -> 26 | D46: N·CTR·CAR·1·07·001/00 | E46: Marcas M-1.1 Raya separadora de sentidos de circulación continua sencilla, con pintura termoplástica color amarillo retrorreflejante de 10 cm de ancho, por unidad de obra terminada. | G46: m | H46: 400 | J46: 45 | K46: =ROUND(H46*J46,2) -> 18000
C47: =+C46+1 -> 27 | D47: N·CTR·CAR·1·07·001/00 | E47: Marcas M-3.1 Raya en la orilla derecha, continua, con pintura termoplástica color blanco retrorreflejante de 10 cm de ancho, por unidad de obra terminada. | G47: m | H47: =H46*2 -> 800 | J47: 45 | K47: 36000
C48: =+C47+1 -> 28 | D48: N·CTR·CAR·1·07·004/02 | E48: Botones DH-1 retrorreflejantes y delimitadores sobre el pavimento, de forma trapecial, plásticos de dos caras, color amarillo retrorreflejante, por unidad de obra terminada. | G48: pza | H48: =ROUND((H46/30)+1,0) -> 14 | J48: 47 | K48: 658
C49: 29 | D49: N·CTR·CAR·1·07·004/02 | E49: Botones DH-1 retrorreflejantes y delimitadores sobre el pavimento, de forma trapecial, plásticos de una cara, color blanco retrorreflejante, por unidad de obra terminada. | G49: pza | H49: =ROUND((H47/30)+1,0) -> 28 | J49: 47 | K49: 1316
C50: 30 | D50: N·CTR·CAR·1·07·005/00 | E50: Señal restrictiva SR-34 Uso obligatorio del cinturón de seguridad, con un tablero de 86 cm X 86 cm, en un poste, con película reflejante tipo A, por unidad de obra terminada. | G50: pza | H50: 1 | J50: 1600 | K50: 1600
C51: 31 | D51: N·CTR·CAR·1·07·005/00 | E51: Señal restrictiva SR-9 Velocidad, con un tablero de 86 cm X 86 cm, en un poste, con película reflejante tipo A, por unidad de obra terminada. | G51: pza | H51: 2 | J51: 1600 | K51: 3200
C52: 32 | D52: N·CTR·CAR·1·07·009/00 | E52: Defensa metálica de dos crestas, con longitud de viga acanalada de 4 128 mm y largo efectivo de 3 810 mm, con recubrimiento de zinc tipo I, con clase A de espesor nominal del metal base de las vigas acanaladas, con postes y separadores de acero, con extremos aterrizados tipo A y terminales, incluye botones retrorreflejantes, por unidad de obra terminada. | G52: m | H52: 650 | J52: 1250 | K52: 812500
J53: SUBTOTAL= | K53: =SUM(K46:K52) -> 873274
E54: ESTA RELACIÓN COMPRENDE | G54: =+C52 -> 32 | H54: CONCEPTOS
J55: SUBTOTAL | K55: =+K13 -> 
J56: IVA 16% | K56: =K55*0.16 -> 
J57: TOTAL | K57: =K55+K56 -> 
K59: 14525361.29

Sheet E7 KM 33 SN JUAN
E3: OBRA: | F3: RECONSTRUCCIÓN DEL CAMINO: EL CAJETE-SAN JUAN DE LA COSTA, TRAMO: DEL KM 23+000 AL KM. 40+000 EN TRAMOS AISLADOS.
I6: CATÁLOGO DE CONCEPTOS Y CANTIDADES DE TRABAJO
E7: MUNICIPIO: | F7: La Paz, en el Estado de Baja California Sur. | I7: FORMA E-7
D10: R E S U M E N
C12: I.- | D12: TERRACERIAS | I12: =+I38 -> 19789715.03
C13: II.- | D13: ESTRUCTURAS Y OBRAS DE DRENAJE | I13: =+I43 -> 754254589.4
C14: III.- | D14: PAVIMENTOS | I14: =+I51 -> 9234871.91
C15: IV.- | D15: SEÑALAMIENTOS Y DISPOSITIVOS DE SEGURIDAD | I15: =+I59 -> 958026
H16: TOTAL: | I16: =SUM(I12:I15) -> 784237202.4 | K16: =+K66 -> 784237202.4
D22: IMPORTE DE LA PROPUESTA ES DE $________________________ 00/100 M.N. (SIN INCLUIR EL I.V.A.)
E31: OBRA: | F31: RECONSTRUCCIÓN DEL CAMINO: EL CAJETE-SAN JUAN DE LA COSTA, TRAMO: DEL KM 23+000 AL KM. 40+000 EN TRAMOS AISLADOS.
I34: CATÁLOGO DE CONCEPTOS Y CANTIDADES DE TRABAJO
E35: MUNICIPIO: | F35: La Paz, en el Estado de Baja California Sur. | I35: FORMA E-7
B36: No. | C36: NORMA O | D36: DESCRIPCION | E36: UNIDAD | F36: VOLUMEN | G36: PRECIO UNITARIO | I36: IMPORTE $
C37: REFERENCIA | G37: CON LETRA | H37: CON NÚMERO
B38: PARTIDA | D38: TERRACERIAS | I38: =SUM(I39:I42) -> 19789715.03
B39: =MAX(B5:B38)+1 -> 1 | C39: N·CTR·CAR·1·01·007/11 | D39: Excavación para estructuras u obras de drenaje, en material tipo B, a cualquier profundidad, el material producto de la excavación se utiliza para el relleno de la misma, por unidad de obra terminada. | E39: m3 | F39: 3521.58 | H39: 3521.58 | I39: =ROUND(H39*F39,2) -> 12401525.7 | K39: =ROUND(F39*H39,2) -> 12401525.7
B40: =MAX(B6:B39)+1 -> 2 | C40: N·CTR·CAR·1·01·007/11 | D40: Relleno para estructuras u obras de drenaje, en material tipo B, a cualquier profundidad, compactado al 90% de su PVSM, con material producto de la excavación, por unidad de obra terminada. | E40: m3 | F40: 1760.79 | H40: 1760.79 | I40: =ROUND(H40*F40,2) -> 3100381.42 | K40: 3100381.42
B41: =MAX(B7:B40)+1 -> 3 | C41: N·CTR·CAR·1·01·009/11 | D41: EXACTECO Escarificacion, acamellonado, tendido y compactado. Para cien por ciento (100%) , para subrasante P.U.O.T. | E41: m3 | F41: 563.73 | H41: 563.73 | I41: 317791.51 | K41: 317791.51
B42: =MAX(B8:B41)+1 -> 4 | C42: N·CTR·CAR·1·01·009/11 | D42: Construcción de PEDRAPLENES utilizando materiales no compactables procedentes de bancos propuestos por el contratista a satisfacción de la Secretaría con díámetros mayores a 120 cm, en el cuerpo del terraplén conforme lo indicado en el proyecto, por unidad de obra terminada. . | E42: m3 | F42: 1992.49 | H42: 1992.49 | I42: 3970016.4 | K42: 3970016.4
B43: PARTIDA | D43: ESTRUCTURAS Y OBRAS DE DRENAJE | I43: =SUM(I44:I50) -> 754254589.4 | K43: 0
B44: =MAX(B36:B43)+1 -> 5 | C44: N·CTR·CAR·1·01·009/11 | D44: Formación de capa de renivelación a base de agregados petreos de entre 1 1/2" a 3" para desplante de muro de protección, por unidad de obra terminada. | E44: m3 | F44: 288.42 | H44: 288.42 | I44: =ROUND(H44*F44,2) -> 83186.1 | K44: 83186.1
B45: =MAX(B36:B44)+1 -> 6 | C45: N·CTR·CAR·1·02·004/02 | D45: Acero para concreto hidráulico con limite elástico igual o mayor de fy= 4200 kg/cm², se deberá utilizar un recubrimiento anticorrosivo a base de resinas epóxicas modificadas y cemento (marca SikaTop®Armatec 110 EpoCem ó similar) por unidad de obra terminada. | E45: kg | F45: 27455.57 | H45: 27455.57 | I45: 753808324 | K45: 753808324
B46: 7 | C46: N·CTR·CAR·1·02·004/02 | D46: Malla electrosoldada 6-6/4-4, por unidad de obra terminada. | E46: m2 | F46: 349.6 | H46: 349.6 | I46: 122220.16 | K46: 122220.16
B47: =MAX(B38:B46)+1 -> 8 | C47: N·CTR·CAR·1·02·003/04 | D47: Concreto hidráulico normal de f´c= 300 kg/cm² en muros de protección, incluye: suministro, colocación, cimbra, mano de obra, curado, herramienta y todo lo necesario para su correcta ejecución. por unidad de obra terminada. | E47: m3 | F47: 382.75 | H47: 382.75 | I47: 146497.56 | K47: 146497.56
B48: =MAX(B39:B47)+1 -> 9 | C48: N·CTR·CAR·1·03·011/00 | D48: Formación de capas drenantes con material pétreo, compactado al 90 %, conforme lo indicado en el proyecto, por unidad de obra terminada. | E48: m3 | F48: 304.03 | H48: 304.03 | I48: 92434.24 | K48: 92434.24
B49: =MAX(B40:B48)+1 -> 10 | C49: N·CTR·CAR·1·02·002/00 | D49: Concreto hidráulico simple f'c= 150 kg/cm2 en construcción de cunetas, por unidad de obra terminada. | E49: m3 | F49: 12 | H49: 12 | I49: 144 | K49: 144
B50: =MAX(B41:B49)+1 -> 11 | C50: N·CTR·CAR·1·02·002/00 | D50: Concreto hidráulico simple f'c= 150 kg/cm2 en espesor de 5 cm en plantilla, por unidad de obra terminada. | E50: m3 | F50: 42.23 | H50: 42.23 | I50: 1783.37 | K50: 1783.37
B51: PARTIDA | D51: PAVIMENTOS | I51: =SUM(I52:I58) -> 9234871.91 | K51: 0
B52: =MAX(B43:B51)+1 -> 12 | C52: N·CTR·CAR·1·04·002/11 | D52: Base hidráulica, con materiales pétreos procedentes de bancos que elija el contratista incluyendo acarreos, compactada al 100 % conforme lo indicado en el proyecto, por unidad de obra terminada. (Incluye: Carga mecánica + Acarreo 1er kilómetro + 1 kilómetro subsecuente). | E52: m3 | F52: 375.82 | H52: 375.82 | I52: =ROUND(H52*F52,2) -> 141240.67 | K52: 141240.67
B53: =MAX(B44:B52)+1 -> 13 | C53: N·CTR·CAR·1·04·004/00 | D53: Riego de impregnación con emulsiones asfálticas de rompimiento lento, por unidad de obra terminada. | E53: lt | F53: 2818.65 | H53: 2818.65 | I53: 7944787.82 | K53: 7944787.82
B54: =MAX(B45:B53)+1 -> 14 | C54: N·CTR·CAR·1·04·005/00 | D54: Riego asfáltico de liga con emulsión de rompimiento rápido, por unidad de obra terminada. | E54: lt | F54: 917.76 | H54: 917.76 | I54: 842283.42 | K54: 842283.42
B55: =MAX(B47:B54)+1 -> 15 | C55: N·CTR·CAR·1·04·006/14 | D55: Carpeta asfáltica con mezcla en caliente de granulometría densa con materiales procedentes de bancos que elija el contratista incluyendo acarreos, compactada al 95 % conforme lo indicado en el proyecto, incluye el cemento asfáltico PG-70H-16, por unidad de obra terminada. | E55: m3 | F55: 76.48 | H55: 76.48 | I55: 5849.19 | K55: 5849.19
B56: =MAX(B47:B55)+1 -> 16 | C56: N·CTR·CAR·3·02·007/10 | D56: Recorte de carpetas asfálticas, por unidad de obra terminada. | E56: m | F56: 444 | H56: 444 | I56: 197136 | K56: 197136
B57: 17 | C57: N·CSV·CAR·3·02·006/06 | D57: Recuperación en frío de pavimento asfáltico, el material recuperado se empleara en la formación de la subrasante, Incluye conformado, afinado, tendido, homogenización y acarreos; por unidad de obra terminada. | E57: m3 | F57: 305.9 | H57: 305.9 | I57: 93574.81 | K57: 93574.81
B58: 18 | C58: N·CSV·CAR·2·02·003/16 | D58: Bacheo superficial aislado con mezcla asfaltica | E58: m3 | F58: 100 | H58: 100 | I58: 10000 | K58: 10000
B59: PARTIDA | D59: SEÑALAMIENTOS Y DISPOSITIVOS DE SEGURIDAD | I59: =SUM(I60:I64) -> 958026 | K59: 0
B60: =MAX(B50:B59)+1 -> 19 | C60: N·CTR·CAR·1·07·001/00 | D60: Marcas M-1.1 Raya separadora de sentidos de circulación discontinua sencilla, con pintura termoplástica color amarillo retrorreflejante de 10 cm de ancho, por unidad de obra terminada. | E60: m | F60: 437 | H60: 437 | I60: =ROUND(H60*F60,2) -> 190969 | K60: 190969
B61: =MAX(B51:B60)+1 -> 20 | C61: N·CTR·CAR·1·07·001/00 | D61: Marcas M-3.1 Raya en la orilla derecha, discontinua, con pintura termoplástica color blanco retrorreflejante de 10 cm de ancho, por unidad de obra terminada. | E61: m | F61: 874 | H61: 874 | I61: =ROUND(H61*F61,2) -> 763876 | K61: 763876
B62: =MAX(B52:B61)+1 -> 21 | C62: N·CTR·CAR·1·07·004/02 | D62: Botones DH-1 retrorreflejantes y delimitadores sobre el pavimento, de forma trapecial, plásticos de dos caras, color amarillo retrorreflejante, por unidad de obra terminada. | E62: pza | F62: 45 | H62: 45 | I62: =ROUND(H62*F62,2) -> 2025 | K62: 2025
B63: =MAX(B53:B62)+1 -> 22 | C63: N·CTR·CAR·1·07·004/02 | D63: Botones DH-1 retrorreflejantes y delimitadores sobre el pavimento, de forma trapecial, plásticos de una cara, color blanco retrorreflejante, por unidad de obra terminada. | E63: pza | F63: 30 | H63: 30 | I63: =ROUND(H63*F63,2) -> 900 | K63: 900
B64: =MAX(B54:B63)+1 -> 23 | C64: N·CTR·CAR·1·07·007/00 | D64: Indicadores de alineamiento OD-6, de concreto hidráulico simple blanco, por unidad de obra terminada. | E64: pza | F64: 16 | H64: 16 | I64: =ROUND(H64*F64,2) -> 256 | K64: =ROUND(F64*H64,2) -> 256
D65: ESTA RELACION COMPRENDE | E65: =COUNT($B$38:$B$64) -> 23 | F65: CONCEPTOS
H66: SUBTOTAL | I66: =+I59+I51+I43+I38 -> 784237202.4 | K66: =SUM(K39:K64) -> 784237202.4
